fUSD/lending_fUSD_20240109
["ID","MTS","AMOUNT","RATE_DAILY","PERIOD"]
[310972018,1704838246757,-6278.09481333,0.0004,4]
[310972019,1704838246769,-5000.0,0.0004,70]
[310972020,1704838246782,-1119.1,0.0004,26]
[310972021,1704838246792,-900.0,0.0004,120]
[310972022,1704838246801,-1687.99,0.0004,7]
[310972023,1704838246811,-1688.0,0.0004,7]
[310972024,1704838246821,-1688.0,0.0004,7]
[310972025,1704838246830,-1688.0,0.0004,7]
[310972026,1704838246841,-1688.0,0.0004,7]
[310972027,1704838246850,-1688.0,0.0004,7]
[310972028,1704838246860,-1688.0,0.0004,7]
[310972029,1704838246870,-1702.31,0.0004,7]
[310972030,1704838246879,-360.0,0.0004,12]
[310972034,1704838246890,-325018.10774531,0.0004,2]
[310972035,1704838246900,-400.38282187,0.0004,30]
[310972037,1704838246909,-600.0,0.0004,41]
[310972038,1704838246919,-2000.0,0.0004,2]
[310972039,1704838246929,-2000.0,0.0004,2]
[310972040,1704838246939,-171.82255,0.0004,7]
[310972042,1704838246949,-536.330019,0.0004,7]
[310972044,1704838246959,-536.330019,0.0004,7]
[310972046,1704838246969,-151.0,0.0004,7]
[310972047,1704838246980,-4325.0,0.0004,60]
[310972048,1704838246990,-151.0,0.0004,7]
[310972050,1704838246999,-417.310268,0.0004,7]
[310972052,1704838247009,-417.310268,0.0004,7]
[310972054,1704838247019,-235.364519,0.0004,7]
[310972055,1704838247030,-235.364519,0.0004,7]
[310972057,1704838247040,-150.92,0.0004,2]
[310972059,1704838247049,-150.92,0.0004,2]
[310972060,1704838247059,-150.92,0.0004,2]
[310972061,1704838247070,-150.92,0.0004,2]
[310972062,1704838247080,-150.92,0.0004,2]
[310972063,1704838247090,-150.92,0.0004,2]
[310972064,1704838247100,-150.92,0.0004,2]
[310972065,1704838247110,-150.92,0.0004,2]
[310972066,1704838247119,-150.92,0.0004,2]
[310972067,1704838247130,-150.92,0.0004,2]
[310972068,1704838247140,-150.92,0.0004,2]
[310972069,1704838247150,-150.92,0.0004,2]
[310972070,1704838247160,-150.92,0.0004,2]
[310972071,1704838247170,-150.92,0.0004,2]
[310972072,1704838247180,-150.92,0.0004,2]
[310972073,1704838247191,-150.92,0.0004,2]
[310972074,1704838247201,-150.92,0.0004,2]
[310972075,1704838247211,-150.92,0.0004,2]
[310972076,1704838247221,-150.92,0.0004,2]
[310972077,1704838247231,-150.92,0.0004,2]
[310972078,1704838247241,-150.92,0.0004,2]
[310972079,1704838247251,-150.92,0.0004,2]
[310972080,1704838247261,-150.92,0.0004,2]
[310972081,1704838247271,-150.92,0.0004,2]
[310972082,1704838247286,-150.92,0.0004,2]
[310972083,1704838247297,-150.92,0.0004,2]
[310972084,1704838247308,-150.92,0.0004,2]
[310972085,1704838247318,-150.92,0.0004,2]
[310972086,1704838247328,-150.92,0.0004,2]
[310972087,1704838247339,-150.92,0.0004,2]
[310972088,1704838247349,-150.92,0.0004,2]
[310972089,1704838247359,-150.92,0.0004,2]
[310972090,1704838247369,-150.92,0.0004,2]
[310972091,1704838247380,-150.92,0.0004,2]
[310972092,1704838247390,-150.92,0.0004,2]
[310972093,1704838247401,-150.92,0.0004,2]
[310972094,1704838247410,-150.92,0.0004,2]
[310972095,1704838247421,-150.92,0.0004,2]
[310972096,1704838247431,-150.92,0.0004,2]
[310972097,1704838247441,-150.92,0.0004,2]
[310972098,1704838247451,-150.92,0.0004,2]
[310972099,1704838247460,-150.92,0.0004,2]
[310972100,1704838247471,-150.92,0.0004,2]
[310972101,1704838247481,-150.92,0.0004,2]
[310972102,1704838247492,-150.92,0.0004,2]
[310972103,1704838247502,-150.92,0.0004,2]
[310972104,1704838247513,-150.92,0.0004,2]
[310972105,1704838247523,-150.92,0.0004,2]
[310972106,1704838247537,-150.92,0.0004,2]
[310972107,1704838247547,-150.92,0.0004,2]
[310972108,1704838247556,-150.92,0.0004,2]
[310972109,1704838247565,-150.92,0.0004,2]
[310972110,1704838247575,-150.92,0.0004,2]
[310972111,1704838247585,-150.92,0.0004,2]
[310972112,1704838247595,-150.92,0.0004,2]
[310972113,1704838247605,-150.92,0.0004,2]
[310972114,1704838247615,-150.92,0.0004,2]
[310972115,1704838247626,-150.92,0.0004,2]
[310972116,1704838247636,-150.92,0.0004,2]
[310972117,1704838247647,-150.92,0.0004,2]
[310972118,1704838247657,-150.92,0.0004,2]
[310972119,1704838247667,-150.92,0.0004,2]
[310972120,1704838247678,-151.0,0.0004,7]
[310972121,1704838247688,-450.0,0.0004002,10]
[310972122,1704838247698,-152.01,0.00040068,2]
[310972123,1704838247708,-952.800292,0.00040084,2]
[310972124,1704838247718,-333.4011,0.00040098,8]
[310972125,1704838247728,-153.84,0.000401,2]
[310972126,1704838247738,-234.4011,0.00040198,8]
[310972127,1704838247748,-200.0,0.00040247,20]
[310972128,1704838247758,-800.0,0.00040247,10]
[310972129,1704838247768,-1057.77740461,0.00040268,5]
[310972130,1704838247780,-1119.1,0.00040273,28]
[310972131,1704838247790,-151.16643292,0.00040277,7]
[310972132,1704838247800,-151.37985866,0.00040292,7]
[310972133,1704838247813,-333.4011,0.00040298,8]
[310972134,1704838247823,-3934.15962479,0.00040305,30]
[310972135,1704838247833,-952.800292,0.00040319,2]
[310972136,1704838247843,-202.0,0.00040323,19]
[310972137,1704838247854,-150.0,0.00040327,2]
[310972138,1704838247865,-611.22,0.00040349,15]
[310972139,1704838247875,-234.4011,0.00040398,8]
[310972140,1704838247885,-334.67,0.000404,7]
[310972141,1704838247896,-855.736,0.00040467,2]
[310972142,1704838247906,-333.4011,0.00040498,8]
[310972143,1704838247916,-2016.46014429,0.000405,15]
[310972144,1704838247925,-450.0,0.00040516,10]
[310972145,1704838247935,-152.9028419,0.00040542,7]
[310972146,1704838247945,-857.958,0.00040544,2]
[310972147,1704838247956,-318.0,0.00040544,2]
[310972148,1704838247966,-881.0,0.00040544,2]
[310972149,1704838247976,-1119.1,0.00040547,30]
[310972150,1704838247986,-952.800292,0.00040555,2]
[310972151,1704838247995,-500.56869645,0.00040556,30]
[310972152,1704838248005,-547.08,0.00040567,2]
[310972153,1704838248015,-473.793,0.00040567,2]
[310972154,1704838248025,-234.4011,0.00040598,8]
[310972155,1704838248038,-333.4011,0.00040698,8]
[310972156,1704838248048,-155.90564939,0.0004073,7]
[310972157,1704838248057,-210.0,0.0004075,2]
[310972158,1704838248066,-150.0,0.00040762,120]
[310972159,1704838248075,-821.57,0.0004077,7]
[310972160,1704838248085,-500.0,0.00040785,2]
[310972161,1704838248095,-952.800292,0.0004079,2]
[310972162,1704838248105,-234.4011,0.00040798,8]
[310972163,1704838248115,-1000.0,0.000408,7]
[310972164,1704838248125,-71192.0,0.000408,30]
[310972165,1704838248135,-1119.1,0.00040821,32]
[310972166,1704838248144,-500.0,0.00040821,10]
[310972167,1704838248154,-333.4011,0.00040898,8]
[310972168,1704838248164,-489.0,0.000409,14]
[310972169,1704838248173,-341.9,0.00040934,2]
[310972170,1704838248183,-163.4322811,0.00040972,2]
[310972171,1704838248192,-1646.2206284,0.00040972,2]
[310972172,1704838248202,-1733.3474528,0.00040972,2]
[310972173,1704838248212,-377.204665,0.00040972,2]
[310972174,1704838248222,-60059.35687787,0.00040986,61]
[310972175,1704838248233,-234.4011,0.00040998,8]
[310972176,1704838248243,-100000.0,0.00041,3]
[310972177,1704838248255,-154.741961,0.00041,7]
[310972178,1704838248266,-226.526954,0.00041,7]
[310972179,1704838248276,-226.526954,0.00041,7]
[310972180,1704838248289,-151.0,0.00041,7]
[310972181,1704838248300,-393.686593,0.00041,7]
[310972182,1704838248310,-393.686593,0.00041,7]
[310972183,1704838248321,-185.359581,0.00041,7]
[310972184,1704838248330,-185.359581,0.00041,7]
[310972185,1704838248340,-5000.0,0.00041,70]
[310972186,1704838248350,-600.0,0.00041,4]
[310972187,1704838248360,-5404.54901035,0.00041,2]
[310972188,1704838248370,-8749.99,0.00041,5]
[310972189,1704838248380,-8750.0,0.00041,5]
[310972190,1704838248390,-100695.06999015,0.00041,30]
[310972191,1704838248400,-750.0,0.00041,3]
[310972192,1704838248409,-1000.0,0.00041,2]
[310972193,1704838248419,-600.0,0.00041,42]
[310972194,1704838248429,-3000.0,0.00041,22]
[310972195,1704838248439,-2000.0,0.00041,2]
[310972196,1704838248448,-151.0,0.00041,7]
[310972197,1704838248458,-493.545168,0.00041,7]
[310972198,1704838248467,-493.545168,0.00041,7]
[310972199,1704838248477,-151.0,0.00041,7]
[310972200,1704838248487,-151.0,0.00041,7]
[310972201,1704838248497,-2000.0,0.00041,2]
[310972202,1704838248506,-179.255117,0.00041,7]
[310972203,1704838248516,-500.0,0.00041,3]
[310972204,1704838248526,-216.59789,0.00041,7]
[310972205,1704838248539,-151.0,0.00041,7]
[310972206,1704838248548,-151.0,0.00041,7]
[310972207,1704838248557,-151.0,0.00041,7]
[310972208,1704838248566,-835.0,0.00041,30]
[310972209,1704838248576,-8749.99,0.00041,5]
[310972210,1704838248585,-343.0,0.00041,30]
[310972211,1704838248594,-8750.0,0.00041,5]
[310972212,1704838248604,-3000.0,0.0004101,22]
[310972213,1704838248614,-450.0,0.00041012,10]
[310972214,1704838248623,-3000.0,0.0004102,22]
[310972215,1704838248633,-952.800292,0.00041025,2]
[310972216,1704838248642,-3000.0,0.0004103,22]
[310972217,1704838248652,-5187.060013,0.0004104,22]
[310972218,1704838248662,-8750.0,0.0004105,5]
[310972219,1704838248671,-380.0,0.00041084,31]
[310972220,1704838248681,-322.5877837,0.00041095,90]
[310972221,1704838248691,-682.25877431,0.00041095,4]
[310972222,1704838248701,-155.0,0.00041095,4]
[310972223,1704838248710,-200.0,0.00041095,2]
[310972224,1704838248720,-1454.26218209,0.00041095,5]
[310972225,1704838248729,-1040.36175293,0.00041095,4]
[310972226,1704838248739,-567.03755505,0.00041095,4]
[310972227,1704838248748,-10008.0,0.00041095,2]
[310972228,1704838248758,-1119.1,0.00041095,34]
[310972229,1704838248768,-500.0,0.00041095,14]
[310972230,1704838248781,-500.0,0.00041095,30]
[310972231,1704838248791,-481.63480139,0.00041095,30]
[310972232,1704838248943,-500.0,0.00041095,30]
[310972233,1704838248952,-500.0,0.00041095,30]
[310972234,1704838248962,-500.0,0.00041095,30]
[310972235,1704838248971,-500.0,0.00041095,30]
[310972236,1704838248981,-500.0,0.00041095,30]
[310972237,1704838248990,-807.24,0.00041095,30]
[310972238,1704838248999,-550.91349602,0.00041095,30]
[310972239,1704838249008,-500.0,0.00041095,30]
[310972240,1704838249017,-155.35492702,0.00041095,30]
[310972241,1704838249027,-500.0,0.00041095,30]
[310972242,1704838249038,-500.0,0.00041095,30]
[310972243,1704838249047,-500.0,0.00041095,30]
[310972244,1704838249057,-500.0,0.00041095,30]
[310972245,1704838249067,-500.0,0.00041095,30]
[310972246,1704838249077,-500.0,0.00041095,30]
[310972247,1704838249086,-500.0,0.00041095,30]
[310972248,1704838249096,-500.0,0.00041095,30]
[310972249,1704838249105,-500.0,0.00041095,30]
[310972250,1704838249115,-500.0,0.00041095,30]
[310972251,1704838249124,-840.21,0.00041095,30]
[310972252,1704838249134,-500.0,0.00041095,7]
[310972253,1704838249144,-581.05,0.00041095,30]
[310972254,1704838249153,-981.24,0.00041095,30]
[310972255,1704838249162,-500.0,0.00041095,30]
[310972256,1704838249172,-228.6246333,0.00041095,30]
[310972257,1704838249181,-500.0,0.00041095,30]
[310972258,1704838249190,-841.98,0.00041095,30]
[310972259,1704838249200,-500.0,0.00041095,30]
[310972260,1704838249210,-500.0,0.00041095,30]
[310972261,1704838249219,-548.78,0.00041095,30]
[310972262,1704838249228,-659.63,0.00041095,30]
[310972263,1704838249238,-500.0,0.00041095,30]
[310972264,1704838249247,-500.0,0.00041095,30]
[310972265,1704838249257,-711.8,0.00041095,30]
[310972266,1704838249266,-1017.10715339,0.00041095,30]
[310972267,1704838249275,-488.64860404,0.00041095,30]
[310972268,1704838249287,-500.0,0.00041095,30]
[310972269,1704838249296,-648.25,0.00041095,30]
[310972270,1704838249305,-615.37,0.00041095,30]
[310972271,1704838249314,-500.0,0.00041095,30]
[310972272,1704838249324,-340.15537199,0.00041095,30]
[310972273,1704838249333,-500.0,0.00041095,30]
[310972274,1704838249342,-500.0,0.00041095,30]
[310972275,1704838249352,-500.0,0.00041095,30]
[310972276,1704838249361,-500.0,0.00041095,30]
[310972277,1704838249371,-550.5,0.00041095,30]
[310972278,1704838249380,-737.28,0.00041095,30]
[310972279,1704838249389,-500.0,0.00041095,30]
[310972280,1704838249398,-738.06,0.00041095,30]
[310972281,1704838249407,-500.0,0.00041095,30]
[310972282,1704838249417,-500.0,0.00041095,30]
[310972283,1704838249427,-500.0,0.00041095,30]
[310972284,1704838249436,-500.0,0.00041095,30]
[310972285,1704838249445,-500.0,0.00041095,30]
[310972286,1704838249454,-500.0,0.00041095,30]
[310972287,1704838249464,-500.0,0.00041095,30]
[310972288,1704838249473,-558.66116934,0.00041095,30]
[310972290,1704838249482,-500.0,0.00041095,30]
[310972292,1704838249493,-549.09,0.00041095,30]
[310972294,1704838249503,-532.54,0.00041095,30]
[310972296,1704838249512,-500.0,0.00041095,30]
[310972298,1704838249522,-500.0,0.00041095,30]
[310972300,1704838249533,-500.0,0.00041095,30]
[310972302,1704838249542,-160.58357007,0.00041095,30]
[310972304,1704838249551,-500.0,0.00041095,30]
[310972306,1704838249560,-500.0,0.00041095,30]
[310972308,1704838249571,-500.0,0.00041095,30]
[310972310,1704838249581,-769.53,0.00041095,30]
[310972312,1704838249591,-619.92,0.00041095,30]
[310972314,1704838249601,-500.0,0.00041095,30]
[310972316,1704838249611,-500.0,0.00041095,30]
[310972318,1704838249621,-500.0,0.00041095,30]
[310972320,1704838249631,-500.0,0.00041095,30]
[310972322,1704838249641,-500.0,0.00041095,30]
[310972324,1704838249651,-617.64194169,0.00041095,30]
[310972326,1704838249661,-965.65,0.00041095,30]
[310972328,1704838249672,-500.0,0.00041095,30]
[310972330,1704838249682,-1000.0,0.00041095,2]
[310972332,1704838249692,-500.0,0.00041095,5]
[310972334,1704838249703,-500.0,0.00041095,30]
[310972336,1704838249714,-500.0,0.00041095,30]
[310972338,1704838249723,-500.0,0.00041095,30]
[310972340,1704838249733,-500.0,0.00041095,30]
[310972342,1704838249743,-500.0,0.00041095,30]
[310972344,1704838249753,-500.0,0.00041095,30]
[310972347,1704838249762,-351.83718907,0.00041095,30]
[310972349,1704838249772,-500.0,0.00041095,30]
[310972351,1704838249783,-500.0,0.00041095,30]
[310972352,1704838249793,-517.48982298,0.00041095,30]
[310972355,1704838249803,-506.03193936,0.00041095,30]
[310972357,1704838249813,-500.0,0.00041095,30]
[310972358,1704838249824,-500.0,0.00041095,30]
[310972360,1704838249833,-500.0,0.00041095,30]
[310972362,1704838249842,-500.0,0.00041095,30]
[310972364,1704838249852,-500.0,0.00041095,30]
[310972366,1704838249861,-820.75,0.00041095,30]
[310972368,1704838249871,-500.0,0.00041095,30]
[310972370,1704838249881,-500.0,0.00041095,30]
[310972372,1704838249892,-500.0,0.00041095,30]
[310972374,1704838249902,-500.0,0.00041095,30]
[310972376,1704838249911,-589.22,0.00041095,30]
[310972378,1704838249921,-500.0,0.00041095,30]
[310972380,1704838249931,-500.0,0.00041095,30]
[310972382,1704838249941,-500.0,0.00041095,30]
[310972384,1704838249952,-500.0,0.00041095,30]
[310972386,1704838249962,-500.0,0.00041095,30]
[310972388,1704838249971,-415.88208512,0.00041095,30]
[310972390,1704838249981,-500.0,0.00041095,30]
[310972392,1704838249992,-582.79,0.00041095,30]
[310972394,1704838250002,-631.03,0.00041095,30]
[310972396,1704838250012,-545.27,0.00041095,30]
[310972398,1704838250022,-500.0,0.00041095,30]
[310972400,1704838250041,-500.0,0.00041095,30]
[310972402,1704838250051,-500.0,0.00041095,30]
[310972404,1704838250062,-500.0,0.00041095,30]
[310972406,1704838250072,-500.0,0.00041095,30]
[310972408,1704838250083,-500.0,0.00041095,30]
[310972410,1704838250093,-500.0,0.00041095,30]
[310972412,1704838250103,-500.0,0.00041095,30]
[310972414,1704838250113,-500.0,0.00041095,30]
[310972416,1704838250123,-500.0,0.00041095,30]
[310972418,1704838250132,-659.73,0.00041095,30]
[310972420,1704838250142,-500.0,0.00041095,30]
[310972422,1704838250152,-500.0,0.00041095,30]
[310972424,1704838250161,-500.0,0.00041095,30]
[310972426,1704838250171,-500.0,0.00041095,30]
[310972428,1704838250181,-500.0,0.00041095,30]
[310972431,1704838250192,-500.0,0.00041095,30]
[310972433,1704838250203,-296.41707476,0.00041095,30]
[310972434,1704838250214,-500.0,0.00041095,30]
[310972437,1704838250226,-500.0,0.00041095,30]
[310972438,1704838250239,-556.47,0.00041095,30]
[310972440,1704838250250,-500.0,0.00041095,30]
[310972442,1704838250260,-500.0,0.00041095,30]
[310972445,1704838250270,-1383.38,0.00041095,30]
[310972447,1704838250283,-500.0,0.00041095,30]
[310972449,1704838250294,-500.0,0.00041095,30]
[310972451,1704838250306,-500.0,0.00041095,30]
[310972453,1704838250316,-500.0,0.00041095,30]
[310972455,1704838250326,-500.0,0.00041095,30]
[310972457,1704838250337,-794.95,0.00041095,30]
[310972459,1704838250347,-500.0,0.00041095,30]
[310972461,1704838250357,-500.0,0.00041095,30]
[310972463,1704838250367,-600.66778861,0.00041095,30]
[310972465,1704838250377,-583.28,0.00041095,30]
[310972467,1704838250386,-500.0,0.00041095,30]
[310972469,1704838250396,-506.48636178,0.00041095,30]
[310972471,1704838250407,-500.0,0.00041095,30]
[310972473,1704838250417,-500.0,0.00041095,30]
[310972475,1704838250426,-500.0,0.00041095,30]
[310972477,1704838250436,-500.0,0.00041095,30]
[310972479,1704838250445,-531.00264242,0.00041095,30]
[310972481,1704838250455,-500.0,0.00041095,30]
[310972483,1704838250465,-500.0,0.00041095,30]
[310972485,1704838250475,-500.0,0.00041095,30]
[310972487,1704838250488,-500.0,0.00041095,30]
[310972489,1704838250498,-500.0,0.00041095,30]
[310972491,1704838250508,-500.0,0.00041095,30]
[310972493,1704838250519,-500.0,0.00041095,30]
[310972495,1704838250534,-500.0,0.00041095,15]
[310972497,1704838250543,-500.0,0.00041095,30]
[310972499,1704838250553,-343.85530357,0.00041095,30]
[310972501,1704838250563,-500.0,0.00041095,30]
[310972503,1704838250573,-500.0,0.00041095,30]
[310972505,1704838250583,-500.0,0.00041095,30]
[310972507,1704838250594,-1656.81,0.00041095,30]
[310972509,1704838250603,-500.0,0.00041095,30]
[310972511,1704838250612,-500.0,0.00041095,30]
[310972513,1704838250622,-500.0,0.00041095,30]
[310972515,1704838250632,-500.0,0.00041095,30]
[310972517,1704838250640,-500.0,0.00041095,30]
[310972519,1704838250649,-500.0,0.00041095,30]
[310972521,1704838250659,-500.0,0.00041095,30]
[310972523,1704838250668,-500.0,0.00041095,30]
[310972524,1704838250677,-500.0,0.00041095,30]
[310972527,1704838250686,-500.0,0.00041095,2]
[310972529,1704838250696,-500.0,0.00041095,30]
[310972530,1704838250706,-500.0,0.00041095,30]
[310972532,1704838250715,-500.0,0.00041095,30]
[310972535,1704838250725,-500.0,0.00041095,30]
[310972537,1704838250735,-500.0,0.00041095,2]
[310972539,1704838250744,-500.0,0.00041095,30]
[310972541,1704838250754,-409.10026931,0.00041095,30]
[310972543,1704838250764,-500.0,0.00041095,30]
[310972545,1704838250773,-855.3,0.00041095,30]
[310972546,1704838250785,-500.0,0.00041095,30]
[310972547,1704838250795,-500.0,0.00041095,30]
[310972548,1704838250805,-500.0,0.00041095,30]
[310972549,1704838250815,-500.0,0.00041095,30]
[310972550,1704838250825,-500.0,0.00041095,30]
[310972551,1704838250835,-500.0,0.00041095,30]
[310972552,1704838250844,-500.0,0.00041095,30]
[310972553,1704838250854,-500.0,0.00041095,30]
[310972554,1704838250863,-500.0,0.00041095,30]
[310972555,1704838250873,-500.0,0.00041095,3]
[310972556,1704838250882,-500.0,0.00041095,30]
[310972557,1704838250891,-500.0,0.00041095,30]
[310972558,1704838250901,-500.0,0.00041095,30]
[310972560,1704838250910,-500.0,0.00041095,30]
[310972562,1704838250919,-500.0,0.00041095,30]
[310972564,1704838250928,-500.0,0.00041095,30]
[310972566,1704838250937,-500.0,0.00041095,30]
[310972568,1704838250946,-500.0,0.00041095,30]
[310972570,1704838250956,-629.47174057,0.00041095,30]
[310972572,1704838250970,-826.09,0.00041095,30]
[310972574,1704838250980,-500.0,0.00041095,30]
[310972576,1704838250989,-500.0,0.00041095,30]
[310972578,1704838250998,-500.0,0.00041095,30]
[310972579,1704838251007,-500.0,0.00041095,30]
[310972581,1704838251017,-500.0,0.00041095,30]
[310972583,1704838251026,-500.0,0.00041095,30]
[310972585,1704838251037,-500.0,0.00041095,30]
[310972587,1704838251046,-500.51629331,0.00041095,30]
[310972589,1704838251055,-699.72,0.00041095,30]
[310972591,1704838251065,-500.0,0.00041095,30]
[310972593,1704838251074,-969.6,0.00041095,30]
[310972595,1704838251083,-500.0,0.00041095,2]
[310972597,1704838251093,-500.0,0.00041095,30]
[310972599,1704838251102,-423.60835652,0.00041095,30]
[310972601,1704838251111,-500.0,0.00041095,30]
[310972603,1704838251122,-500.0,0.00041095,30]
[310972605,1704838251134,-500.0,0.00041095,30]
[310972607,1704838251144,-500.0,0.00041095,30]
[310972609,1704838251153,-500.0,0.00041095,30]
[310972611,1704838251162,-636.12,0.00041095,30]
[310972613,1704838251171,-500.0,0.00041095,30]
[310972615,1704838251180,-884.22,0.00041095,30]
[310972617,1704838251189,-500.0,0.00041095,30]
[310972619,1704838251199,-500.0,0.00041095,30]
[310972621,1704838251209,-500.0,0.00041095,30]
[310972623,1704838251218,-500.0,0.00041095,30]
[310972625,1704838251227,-809.17,0.00041095,30]
[310972627,1704838251236,-500.0,0.00041095,30]
[310972629,1704838251245,-500.0,0.00041095,30]
[310972631,1704838251254,-500.0,0.00041095,30]
[310972633,1704838251263,-500.0,0.00041095,30]
[310972635,1704838251273,-504.51389895,0.00041095,30]
[310972637,1704838251283,-500.0,0.00041095,30]
[310972639,1704838251292,-500.0,0.00041095,30]
[310972641,1704838251301,-500.0,0.00041095,30]
[310972643,1704838251311,-500.0,0.00041095,30]
[310972645,1704838251320,-500.0,0.00041095,30]
[310972647,1704838251329,-500.0,0.00041095,30]
[310972649,1704838251338,-500.0,0.00041095,30]
[310972651,1704838251347,-500.0,0.00041095,30]
[310972653,1704838251356,-500.0,0.00041095,30]
[310972655,1704838251365,-500.0,0.00041095,30]
[310972657,1704838251374,-500.0,0.00041095,30]
[310972659,1704838251383,-500.0,0.00041095,30]
[310972661,1704838251393,-1095.94,0.00041095,30]
[310972663,1704838251402,-1092.75,0.00041095,30]
[310972665,1704838251411,-500.0,0.00041095,30]
[310972667,1704838251421,-500.0,0.00041095,30]
[310972669,1704838251430,-500.0,0.00041095,30]
[310972671,1704838251440,-500.0,0.00041095,30]
[310972672,1704838251449,-697.87,0.00041095,30]
[310972675,1704838251459,-500.0,0.00041095,30]
[310972676,1704838251469,-500.0,0.00041095,30]
[310972679,1704838251479,-500.0,0.00041095,30]
[310972681,1704838251488,-732.79,0.00041095,30]
[310972682,1704838251498,-500.0,0.00041095,30]
[310972684,1704838251508,-500.0,0.00041095,30]
[310972686,1704838251517,-500.0,0.00041095,30]
[310972688,1704838251526,-500.0,0.00041095,30]
[310972690,1704838251539,-500.0,0.00041095,30]
[310972692,1704838251548,-500.0,0.00041095,30]
[310972695,1704838251558,-500.0,0.00041095,30]
[310972697,1704838251568,-1093.88,0.00041095,30]
[310972698,1704838251578,-500.0,0.00041095,30]
[310972700,1704838251587,-911.96,0.00041095,30]
[310972702,1704838251597,-553.69,0.00041095,30]
[310972704,1704838251606,-500.0,0.00041095,30]
[310972706,1704838251616,-500.0,0.00041095,30]
[310972709,1704838251627,-629.6,0.00041095,30]
[310972711,1704838251637,-500.0,0.00041095,30]
[310972713,1704838251647,-500.0,0.00041095,30]
[310972715,1704838251656,-1000.0,0.00041095,30]
[310972717,1704838251665,-500.0,0.00041095,30]
[310972719,1704838251674,-500.0,0.00041095,30]
[310972721,1704838251683,-954.8,0.00041095,30]
[310972723,1704838251693,-500.0,0.00041095,30]
[310972724,1704838251702,-500.0,0.00041095,30]
[310972726,1704838251711,-500.0,0.00041095,30]
[310972728,1704838251721,-731.3,0.00041095,30]
[310972730,1704838251731,-500.0,0.00041095,30]
[310972732,1704838251740,-500.0,0.00041095,30]
[310972734,1704838251750,-500.0,0.00041095,30]
[310972736,1704838251759,-500.0,0.00041095,30]
[310972738,1704838251769,-500.0,0.00041095,30]
[310972740,1704838251778,-965.23,0.00041095,30]
[310972742,1704838251790,-715.75,0.00041095,30]
[310972744,1704838251800,-500.0,0.00041095,30]
[310972746,1704838251809,-500.0,0.00041095,30]
[310972748,1704838251819,-500.0,0.00041095,30]
[310972750,1704838251828,-500.0,0.00041095,30]
[310972752,1704838251837,-868.98,0.00041095,30]
[310972754,1704838251847,-500.0,0.00041095,30]
[310972756,1704838251856,-605.08,0.00041095,30]